Cogmind - Beta 13 @@@ ROGUE MODE // 2024.04.27 @ 12:23:19 Player: Miles Result: Destroyed by Y-45 Defender with Beam Rifle Performance ------------- Evolutions (0) 0 Regions Visited (2) 400 Robots Destroyed (15) 75 Value Destroyed (368) 368 Prototype IDs (0) 0 Alien Tech Used (0) 0 Bonus (30) 30 TOTAL SCORE: 873 Bonus ------- Follower Combat Kills 42 Friendly Fire -12 Cogmind --------- Core Integrity 0/250 Matter 300/300 Energy 250/250 System Corruption 3% Temperature Cool (21) Movement Walking (120) Location -10/Mines Parts ------- > --- POWER (1) -------- Ion Engine > --- PROPULSION (2) --- Aluminum Leg > --- UTILITY (2) ------ Heat Sink Tractor Beam > --- WEAPON (2) ------- Small Laser Small Laser > --- INVENTORY (5) ---- Ion Engine Aluminum Leg Aluminum Leg Aluminum Leg Mining Laser Peak State ------------ > --- POWER ------------ Ion Engine > --- PROPULSION ------- Wheel Wheel > --- UTILITY ---------- Small Storage Unit Improved Terrain Scanner > --- WEAPON ----------- Medium Laser Small Laser > --- INVENTORY -------- Ion Engine Light Treads Light Treads Aluminum Leg Aluminum Leg Wheel EM Pulse Gun [Rating: 9] Favorites ----------- Power Ion Engine Engine Ion Engine Propulsion Wheel Leg Aluminum Leg Wheel Wheel Flight Unit Flight Unit Utility Small Storage Unit Device Heat Sink Storage Small Storage Unit Weapon Small Laser Energy Gun Small Laser Ballistic Gun Light Assault Rifle Special Weapon Mining Laser Build | -11 -10 -10 ------- Run | Yrd Mat Min Slots Evolved . | . . . Power . | . . . Propulsion . | . . . Utility . | . . . Weapon . | . . . Parts Attached 34 | 8 11 15 Power 4 | 1 1 2 Engine 4 | 1 1 2 Core . | . . . Reactor . | . . . Propulsion 9 | 2 1 6 Treads . | . . . Leg 2 | . . 2 Wheel 5 | 2 1 2 Hover . | . . . Flight 2 | . . 2 Utility 6 | 2 1 3 Device 5 | 1 1 3 Storage 1 | 1 . . Processor . | . . . Hackware . | . . . Protection . | . . . Artifact . | . . . Weapon 15 | 3 8 4 Energy Gun 10 | 3 5 2 Energy Cannon . | . . . Ballistic Gun 1 | . . 1 Ballistic Cannon . | . . . Launcher . | . . . Special Weapon 4 | . 3 1 Impact Weapon . | . . . Slashing Weapon . | . . . Piercing Weapon . | . . . Special Melee Weapon . | . . . Unidentified Prototypes . | . . . Parts Lost 9 | . 7 2 Power 1 | . 1 . Propulsion 2 | . 1 1 Utility 2 | . 1 1 Weapon 4 | . 4 . Highest Loss Streak 6 | . 6 1 To Critical Strikes . | . . . Average Slot Usage (%) 92 | . 87 95 Engine 13 | . 12 14 Leg 3 | . . 5 Wheel 11 | . 22 5 Flight 9 | . . 14 Device 15 | . 10 18 Storage 10 | . 14 8 Energy Gun 18 | . 19 17 Ballistic Gun 3 | . . 5 Special Weapon 5 | . 6 5 Naked Turns . | . . . Heaviest Build 14 | 14 14 13 Greatest Support 20 | 20 20 20 Greatest Overweight (x) 4 | . 1 4 Average Overweight (x) . | . . . Largest Inventory Capacity 8 | 8 8 8 Average Capacity 7 | 7 8 6 Most Carried 8 | 8 8 8 Average Carried 6 | 5 6 6 Final Capacity 8 | 8 8 5 Final Carried 8 | 8 8 5 Class Distribution -------------------- 48% | Mutant 26% | Commander-Mutant 25% | Scavenger-Mutant Dominant Class ---------------- Mutant | -10/Materials Scavenger-Mutant | -10/Mines Resources | -11 -10 -10 ----------- Run | Yrd Mat Min Matter Collected 534 | 280 79 175 Remotely 68 | . . 68 Salvage Created 681 | 150 164 367 Parts 32 | 6 1 25 Haulers Intercepted . | . . . Recyclers Shooed 1 | . . 1 Parts Field Recycled . | . . . Retrieved Matter . | . . . Parts Self-Destructed . | . . . Prevented . | . . . Kills | -11 -10 -10 ------- Run | Yrd Mat Min Combat Hostiles Destroyed 9 | . 3 6 Guns 9 | . 3 6 Classes Destroyed 3 | 2 1 . Tunneler 3 | 2 . 1 Recycler 3 | 1 1 1 Grunt 9 | . 3 6 Best Kill Streak 3 | 2 2 3 Combat Bots Only 3 | . 2 3 Max Kills in Single Turn 1 | 1 1 1 Gunslinging . | . . . Exploded . | . . . Melee . | . . . Uniques/NPCs Destroyed . | . . . Combat | -11 -10 -10 -------- Run | Yrd Mat Min Hostile Shots Fired 84 | . 32 52 Missed 22 | . 3 19 Damage Taken 1051 | . 668 383 Core 256 | . 142 114 Absorbed by Shields . | . . . Core Remaining (%) 100 | 100 . . Volleys Fired 89 | 15 31 43 Largest 2 | 2 2 2 Hottest 140 | 90 140 140 Shots Fired 135 | 29 38 68 Gun 116 | 29 30 57 Cannon . | . . . Launcher . | . . . Special 19 | . 8 11 Kinetic 13 | . . 13 Thermal 118 | 28 35 55 Explosive . | . . . Electromagnetic 4 | 1 3 . Robot Hit Streak 16 | 7 8 16 Robot Miss Streak 4 | 4 3 3 Penetration Max . | . . . Secondary Targets 1 | . . 1 Max Gunslinging Chain 1 | . . 1 Shots Hit Robots 75 | 16 22 37 Core Hits 32 | 4 10 18 Critical Kills . | . . . Critical Parts Destroyed . | . . . Critical Strikes 3 | 2 1 . Burn 2 | 1 1 . Corrupt 1 | 1 . . Melee Attacks . | . . . Impact . | . . . Slashing . | . . . Piercing . | . . . Sneak Attacks . | . . . Combat Hostiles . | . . . Follow-up Attacks . | . . . Damage Inflicted 962 | 188 347 427 Guns 841 | 188 226 427 Cannons . | . . . Explosions 63 | . 63 . Melee . | . . . Ramming 10 | . 10 . Kinetic 93 | . . 93 Thermal 832 | 173 325 334 Explosive . | . . . Electromagnetic 27 | 15 12 . Impact . | . . . Slashing . | . . . Piercing . | . . . Highest Corruption 3 | . 3 3 Average Corruption 3 | . 3 3 Corruption Purged . | . . . Corruption Blocked . | . . . Effects 9 | . 3 6 Message Errors 3 | . . 3 Matter Fused 4 | . 3 1 Data Loss (minor) 1 | . . 1 Misfires 1 | . . 1 Overload Shots . | . . . Overflow Damage . | . . . Projectiles . | . . . Explosions . | . . . Melee . | . . . Knockbacks . | . . . Impact . | . . . Kinetic . | . . . Secondary . | . . . Self-Inflicted Damage 59 | . 59 . Shots 1 | . 1 . Rammed 3 | . 3 . Targets Rammed 3 | . 3 . Kicked . | . . . Crushed . | . . . Highest Temperature 314 | 120 314 37 Average Temperature 90 | 44 158 9 Received Heat Transfer 447 | . 258 189 Effects 1 | . 1 . Interference 1 | . 1 . Siege Activations . | . . . Robots Corrupted . | . . . Combat Hostiles . | . . . Parts Fried . | . . . Impact Corruptions . | . . . Robots Melted . | . . . Combat Hostiles . | . . . Parts Melted 3 | . 3 . Heat Transferred 2030 | 533 747 750 Parts Sabotaged . | . . . Parts Stolen . | . . . Parts Stripped . | . . . Power Chain Reactions 1 | . 1 . Alert | -11 -10 -10 ------- Run | Yrd Mat Min Peak Influence 307 | 15 89 307 Initial 34 | . 9 34 Average 105 | 6 52 176 Maximum Alert Level 1 | . . 1 Low Security (%) 78 | 100 100 55 Level 1 21 | . . 44 Level 2 . | . . . Level 3 . | . . . Level 4 . | . . . Level 5 . | . . . High Security . | . . . Max Security . | . . . Squads Dispatched . | . . . Investigation . | . . . Extermination . | . . . Reinforcement . | . . . Assault . | . . . Garrison . | . . . Intercept . | . . . Searches Triggered . | . . . Construction Impeded . | . . . Haulers Reinforced . | . . . Active Scanning Responses . | . . . Cargo Convoy Interrupts . | . . . Stealth | -11 -10 -10 --------- Run | Yrd Mat Min Distress Signals . | . . . Communications Jammed . | . . . Distress Signals . | . . . Times Spotted 20 | . 7 13 Peak Tracking Total 6 | . 4 6 Tactical Retreats 1 | . 1 . Traps | -11 -10 -10 ------- Run | Yrd Mat Min Traps Triggered . | . . . Indirectly . | . . . Trap Hack Attempts . | . . . Triggered . | . . . Disarmed . | . . . Reprogrammed . | . . . Reused . | . . . Traps Extracted . | . . . Installed . | . . . Triggered 1 | . . 1 Machines | -11 -10 -10 ---------- Run | Yrd Mat Min Machines Disabled 1 | . 1 . Max in Single Turn 1 | . 1 . Machines Repaired . | . . . Machines Dismantled . | . . . Machines Sabotaged . | . . . Overloaded Fab Kills . | . . . Hacking | -11 -10 -10 --------- Run | Yrd Mat Min Machines Accessed 4 | . 3 1 Terminals 4 | . 3 1 Fabricators . | . . . Repair Stations . | . . . Recycling Units . | . . . Scanalyzers . | . . . Garrison Access . | . . . Total Hacks 9 | . 8 1 Successful 6 | . 5 1 Failed 3 | . 3 . Catastrophic . | . . . Database Lockouts . | . . . Manual 6 | . 6 . Terminals 9 | . 8 1 Fabricators . | . . . Repair Stations . | . . . Recycling Units . | . . . Scanalyzers . | . . . Garrison Access . | . . . Terminal Hacks 3 | . 2 1 Locate Traps 1 | . 1 . Hauler Manifests 1 | . 1 . Zone Layout 1 | . . 1 Fabricator Hacks . | . . . Repair Station Hacks . | . . . Recycling Unit Hacks . | . . . Scanalyzer . | . . . Garrison Access Hacks . | . . . Unauthorized Hacks 3 | . 3 . Terminals 3 | . 3 . Assimilate 3 | . 3 . Fabricators . | . . . Repair Stations . | . . . Recycling Units . | . . . Scanalyzers . | . . . Garrison Access . | . . . Data Cores Recovered . | . . . Used . | . . . Hacking Detections . | . . . Full Trace Events . | . . . Feedback Events . | . . . Feedback Blocked . | . . . Robot Schematics Acquired . | . . . Robots Built . | . . . Authchips . | . . . Time . | . . . Total Robot Build Rating . | . . . Part Schematics Acquired . | . . . Parts Built . | . . . Authchips . | . . . Time . | . . . Total Part Build Rating . | . . . Parts Repaired . | . . . Time . | . . . Parts Recycled . | . . . Recycled Matter . | . . . Retrieved Matter . | . . . Retrieved Components . | . . . Parts Scanalyzed . | . . . Part Schematics Acquired . | . . . Parts Damaged . | . . . Bothacking | -11 -10 -10 ------------ Run | Yrd Mat Min Used RIF Installer . | . . . Robots Hacked . | . . . Non-combat . | . . . Combat . | . . . Robot Hacks Applied . | . . . Relay Couplers Released . | . . . Fabnet Peak Effective % . | . . . Robots Rewired . | . . . Allies Hacked . | . . . Hacks Repelled . | . . . Allies | -11 -10 -10 -------- Run | Yrd Mat Min Total Allies 5 | . 2 3 Largest Group 5 | . 2 5 Highest-Rated Group 60 | . 20 60 Highest-Rated Ally 16 | . 10 16 Total Orders . | . . . Ally Attacks 20 | . . 20 Total Damage 187 | . . 187 Kills 6 | . . 6 Allies Corrupted . | . . . Allies Melted . | . . . Intel | -11 -10 -10 ------- Run | Yrd Mat Min Robot Analysis Total . | . . . Derelict Logs Recovered 2 | . . 2 Drone Launches . | . . . Drone Recoveries . | . . . Exploration | -11 -10 -10 ------------- Run | Yrd Mat Min Turns Passed 1024 | 199 317 508 Spaces Moved 689 | 167 248 274 Core 24 | 7 . 17 Treads . | . . . Legs 49 | . . 49 Wheels 497 | 160 248 89 Hover . | . . . Flight 119 | . . 119 Fastest Speed 37 | 50 80 37 Average Speed 91 | 78 81 108 Slowest Speed 280 | 80 95 280 Overloaded Moves . | . . . Propulsion Burnouts . | . . . Robots Hopped . | . . . Cave-ins Triggered 1 | . 1 . Exploration Rate (%) 17 | 5 21 25 Regions Visited 2 Branch Regions 1 Pre-discovered Areas . | . . . Known Exits Taken . | . . . Unknown Exits Taken 2 | 1 1 . Scrap Searched . | . . . Spaces Dug 6 | . 6 . Terrain Destroyed 14 | . 11 3 Melee . | . . . Projectile 9 | . 6 3 AOE 5 | . 5 . Terrain Rammed . | . . . Walls Destroyed . | . . . Machines Disabled . | . . . Actions | -11 -10 -10 --------- Run | Yrd Mat Min Total 913 | 205 305 403 Wait 44 | . 6 38 Move 687 | 166 247 274 Hop . | . . . Pick Up 34 | 15 7 12 Fast Attach 7 | . . 7 Attach 17 | 8 7 2 Detach 1 | 1 . . Swap 10 | . 4 6 Drop 21 | . . 21 Fire 89 | 15 31 43 Melee . | . . . Ram 3 | . 3 . Kick . | . . . Crush . | . . . Escape Stasis . | . . . Rewire . | . . . Trap . | . . . Miscellaneous . | . . . Route ------- -11/Scrapyard -10/Materials -10/Mines History --------- Turn | Location | Event 3 | -11/Scrapyard | Discovered new exit (range 15) 200 | -11/Scrapyard | Entered Materials 263 | -10/Materials | Crushed by falling debris 321 | -10/Materials | Build established: Mutant 364 | -10/Materials | Core integrity fell below 50% 390 | -10/Materials | Lost 6 parts (1p1u4w) 410 | -10/Materials | Discovered new exit (range 12) 517 | -10/Materials | Entered Mines 517 | -10/Mines | Accompanied by 2 allies 522 | -10/Mines | Assisted by bots powering up and referring to "LRC-V3" 530 | -10/Mines | Learned Materials security intel 714 | -10/Mines | Learned Materials stockpile data 724 | -10/Mines | Excavation squad dispatched 724 | -10/Mines | A large section of the Mines collapsed 974 | -10/Mines | Excavation squad dispatched 1007 | -10/Mines | Core integrity fell below 20% 1025 | -10/Mines | Destroyed by Y-45 Defender with Beam Rifle Last Messages --------------- 00928_ Acquired Aluminum Leg. 00929_ Acquired 5 matter. 00929_ Acquired 3 matter. 00929_ Acquired 2 matter. 00963_ Dropped Ion Engine. 00964_ Acquired 10 matter. 00972_ Acquired 1 matter. 00974_ ALERT: Derelict activity in mines confirmed. Dispatching additional escorted excavation squad. 00974_ System corrupted: Matter fused (-7). 00974_ Dropped Lgt. Assault Rifle. 00975_ Acquired 7 matter. 00975_ Acquired Sml. Laser. 00976_ Acquired 10 matter. 01004_ G-34 Mercenary destroyed. 01004_ Switching to secondary target: G-34 Mercenary. 01004_ K-01 Serf collects debris. 01016_ G-34 Mercenary destroyed. 01016_ K-01 Serf collects debris. 01024_ Aluminum Leg destroyed. Map ----- +----------------------------------------------------+ | ?????????????????????????????????????????????????? | | ?????????????????????????????????????????????????? | | ?????????????????????????????????????????????????? | | ?????????????????????????????????????????????????? | | ?????????????????????????????????????????????????? | | ?????????????????????????????????????????????????? | | ?????????????????????????????????????????????????? | | ?????? ? ????????????????????????????????????????? | | ?????? ????#???????????????????????????????????? | | ??????# ????????????????????????????????????????? | | ??????# ??????????? ????????????????????????????? | | ??????# ????????????????????????????????????????? | | ??????# #???????????????????????????????????????? | | ??????# ##?????????????????????????????????????? | | ?????##% ##????????????????????????????????????? | | ?????# #????????????????????????????????????? | | #????# #???????#????????????????????????????? | | ?????## "##????????????????????????????????????? | | ??????###"##???#?????????????????????????????????? | | ????????# #####??????????????????????????????????? | | ?????#### = %*###########????????????????????????? | | ????## ==*== * |!%=!==#????????????????????????? | | ????# "*" | ! [ =!%*=###??????????????????????? | | ????# =!| ########### #??????????????????????? | | ????## ###?????????### #??????????????????????? | | ?????## #"#?????????????#@#########??????????????? | | ??????# "##?????????????#kYY #???????? | | ????### "#??????????????# g*tt ???????? | | #####T# ##??????????????########## #??????????? | | # #######????#####???????????????????????????? | | # % #???## #???????????????????????????? | | # """ #???# ##?###??????????????????????? | | # """ #### #???# ## #??????????????????????? | | # """ #??# #???## #??????????????????????? | | # #??# #????## #???????????????????????? | | #######??# #????## ==##???????????????????????? | | ?????????# #??### *%##????????????????????????? | | ?????????# #?## ==#?????????????????????????? | | ?????????# #?# =#?????????????????????????? | | ?????????# ### [ ##?????????????????????????? | | ?????????# ##??????????????????????????? | | ?????????# ############????????????????? | | ?????????######## ?????????????? | | ????????########## = ?????????????? | | ????????# ###########?????????????????? | | ???????????######## #??????????????????????????? | | ?????#?????????### *#??????????????????????????? | | ??????????????## =%###????????????????????????? | | ??????#??????## [*=#####?????????????????????? | | ??????????????# #?????????????????????? | +----------------------------------------------------+ Best States ------------- Heat Dissipation 35 Energy Generation 10 Energy Capacity 250 Matter Stores 300 Matter Capacity 300 Sight Range 16 Terrain Scan Range 16 Terrain Scan Density 10 Evasion (%) 55 Item Schematics ----------------- None Robot Schematics ------------------ None Fabricated ------------ Nothing Alien Tech Used ----------------- None Achievements -------------- True Hacker Challenges ------------ None Game ------ Seed LauncherShadingCompactor Manual? 0 Play Time 00:18:13 Cumulative 8.1 hours Start 2024.04.27 @ 11:56:12 End 2024.04.27 @ 12:23:19 Sessions 1 Manual Loads 0 Difficulty Rogue Special Mode None Game No. 12 Rogue 12 Adventurer 0 Explorer 0 Win Type - Total 0 Types 0/0/0/0/0/0/0/0/0 Lore% 5 Gallery% 15 Achievement% 14 Wizard Run 0 Options --------- Layout 0 ASCII 0 Keyboard 0 Movement Mouse Keybinds 0 Fullscreen 1 Font 18/SmallcapsGlow Map View 76x50 Zoom Use 0% Tactical HUD 1 Map Filters NONE Filters NONE Steam 1 RUN: 6d1cc2c4-4d7e-48e4-94f8-9e906494e1b9